fUSD/lending_fUSD_20250306
["ID","MTS","AMOUNT","RATE_DAILY","PERIOD"]
[355519832,1741234236323,-500.0,0.00011497,2]
[355519833,1741234236333,-500.0,0.00011497,2]
[355519834,1741234236343,-500.0,0.00011497,2]
[355519835,1741234236352,-500.0,0.00011497,2]
[355519836,1741234236362,-500.0,0.00011497,2]
[355519837,1741234236371,-500.0,0.00011497,2]
[355519838,1741234236381,-500.0,0.00011497,2]
[355519839,1741234236390,-508.77621126,0.00011497,2]
[355519840,1741234236401,-500.0,0.00011497,2]
[355519841,1741234236417,-500.0,0.00011497,2]
[355519842,1741234236426,-507.46695355,0.00011497,2]
[355519843,1741234236435,-510.72720369,0.00011497,2]
[355519844,1741234236444,-514.4740159,0.00011497,2]
[355519845,1741234236455,-500.0,0.00011497,2]
[355519846,1741234236464,-500.0,0.00011497,2]
[355519847,1741234236474,-500.0,0.00011497,2]
[355519848,1741234236485,-500.0,0.00011497,2]
[355519849,1741234236495,-500.0,0.00011497,2]
[355519850,1741234236504,-500.0,0.00011497,2]
[355519851,1741234236514,-602.85,0.00011497,2]
[355519852,1741234236523,-500.0,0.00011497,2]
[355519853,1741234236533,-500.0,0.00011497,2]
[355519854,1741234236543,-500.0,0.00011497,2]
[355519855,1741234236552,-286.83354505,0.00011497,2]
[355519856,1741234236562,-500.0,0.00011497,2]
[355519857,1741234236571,-503.71379968,0.00011497,2]
[355519858,1741234236580,-500.0,0.00011497,2]
[355519859,1741234236590,-500.0,0.00011497,2]
[355519860,1741234236600,-500.0,0.00011497,2]
[355519861,1741234236609,-500.0,0.00011497,2]
[355519862,1741234236619,-500.0,0.00011497,2]
[355519863,1741234236629,-500.0,0.00011497,2]
[355519864,1741234236639,-500.0,0.00011497,2]
[355519865,1741234236648,-162.68012977,0.00011497,2]
[355519866,1741234236658,-502.91537812,0.00011497,2]
[355519867,1741234236665,-500.0,0.00011497,2]
[355519868,1741234236671,-448.90270387,0.00011497,2]
[355519869,1741234236680,-506.48403454,0.00011497,2]
[355519870,1741234236690,-500.0,0.00011497,2]
[355519871,1741234236699,-500.0,0.00011497,2]
[355519872,1741234236708,-511.58095553,0.00011497,2]
[355519873,1741234236718,-502.43498985,0.00011497,2]
[355519874,1741234236727,-500.0,0.00011497,2]
[355519875,1741234236738,-506.49226159,0.00011497,2]
[355519876,1741234236747,-500.0,0.00011497,2]
[355519877,1741234236756,-500.0,0.00011497,2]
[355519878,1741234236766,-500.0,0.00011497,2]
[355519879,1741234236777,-616.67398771,0.00011497,2]
[355519880,1741234236787,-502.37992106,0.00011497,2]
[355519881,1741234236796,-385.5551409,0.00011497,2]
[355519882,1741234236805,-500.0,0.00011497,2]
[355519883,1741234236815,-500.0,0.00011497,2]
[355519884,1741234236824,-500.0,0.00011497,2]
[355519885,1741234236834,-500.0,0.00011497,2]
[355519886,1741234236844,-500.0,0.00011497,2]
[355519887,1741234236854,-500.0,0.00011497,2]
[355519888,1741234236865,-503.49362699,0.00011497,2]
[355519889,1741234236875,-500.0,0.00011497,2]
[355519890,1741234236885,-500.0,0.00011497,2]
[355519891,1741234236895,-431.4667228,0.00011497,2]
[355519892,1741234237083,-518.3845545,0.00011497,2]
[355519893,1741234237093,-500.0,0.00011497,2]
[355519894,1741234237103,-514.8766356,0.00011497,2]
[355519895,1741234237113,-504.08290423,0.00011497,2]
[355519896,1741234237122,-500.0,0.00011497,2]
[355519897,1741234237132,-500.0,0.00011497,2]
[355519898,1741234237141,-500.0,0.00011497,2]
[355519899,1741234237151,-500.0,0.00011497,2]
[355519900,1741234237160,-500.0,0.00011497,2]
[355519901,1741234237169,-526.92069513,0.00011497,2]
[355519902,1741234237179,-500.0,0.00011497,2]
[355519903,1741234237188,-500.0,0.00011497,2]
[355519904,1741234237199,-503.42526195,0.00011497,2]
[355519905,1741234237209,-507.42715423,0.00011497,2]
[355519906,1741234237219,-500.0,0.00011497,2]
[355519907,1741234237230,-500.0,0.00011497,2]
[355519908,1741234237240,-500.0,0.00011497,2]
[355519909,1741234237250,-504.98844276,0.00011497,2]
[355519910,1741234237259,-336.39230578,0.00011497,2]
[355519911,1741234237271,-500.0,0.00011497,2]
[355519912,1741234237282,-506.40378579,0.00011497,2]
[355519913,1741234237291,-509.94148261,0.00011497,2]
[355519914,1741234237300,-538.37,0.00011497,2]
[355519915,1741234237310,-505.14743263,0.00011497,2]
[355519916,1741234237319,-500.0,0.00011497,2]
[355519917,1741234237328,-500.0,0.00011497,2]
[355519918,1741234237339,-513.15,0.00011497,2]
[355519919,1741234237350,-500.0,0.00011497,2]
[355519920,1741234237359,-500.0,0.00011497,2]
[355519921,1741234237369,-518.7348739,0.00011497,2]
[355519922,1741234237379,-505.9944365,0.00011497,2]
[355519923,1741234237388,-500.0,0.00011497,2]
[355519924,1741234237398,-500.0,0.00011497,2]
[355519925,1741234237410,-500.0,0.00011497,2]
[355519926,1741234237420,-500.0,0.00011497,2]
[355519927,1741234237432,-503.17453413,0.00011497,2]
[355519928,1741234237441,-507.50398402,0.00011497,2]
[355519929,1741234237451,-500.0,0.00011497,2]
[355519930,1741234237461,-500.0,0.00011497,2]
[355519931,1741234237472,-500.0,0.00011497,2]
[355519932,1741234237482,-526.3341957,0.00011497,2]
[355519933,1741234237495,-511.44690103,0.00011497,2]
[355519934,1741234237505,-502.84804045,0.00011497,2]
[355519935,1741234237515,-500.0,0.00011497,2]
[355519937,1741234237524,-500.0,0.00011497,2]
[355519938,1741234237534,-503.58948229,0.00011497,2]
[355519939,1741234237543,-500.0,0.00011497,2]
[355519940,1741234237553,-512.96648627,0.00011497,2]
[355519941,1741234237562,-500.0,0.00011497,2]
[355519942,1741234237571,-500.0,0.00011497,2]
[355519943,1741234237581,-500.0,0.00011497,2]
[355519944,1741234237591,-501.2209385,0.00011497,2]
[355519945,1741234237601,-503.40833999,0.00011497,2]
[355519946,1741234237611,-500.0,0.00011497,2]
[355519947,1741234237620,-500.0,0.00011497,2]
[355519948,1741234237630,-519.25247743,0.00011497,2]
[355519949,1741234237640,-596.06997044,0.00011497,2]
[355519950,1741234237650,-500.0,0.00011497,2]
[355519951,1741234237660,-500.0,0.00011497,2]
[355519952,1741234237669,-507.74,0.00011497,2]
[355519953,1741234237679,-509.08264852,0.00011497,2]
[355519954,1741234237689,-500.0,0.00011497,2]
[355519955,1741234237699,-500.0,0.00011497,2]
[355519956,1741234237709,-604.62,0.00011497,2]
[355519957,1741234237719,-509.63767471,0.00011497,2]
[355519958,1741234237729,-500.0,0.00011497,2]
[355519959,1741234237743,-500.0,0.00011497,2]
[355519960,1741234237753,-500.0,0.00011497,2]
[355519961,1741234237763,-500.0,0.00011497,2]
[355519962,1741234237772,-500.06048531,0.00011497,2]
[355519963,1741234237782,-500.0,0.00011497,2]
[355519964,1741234237791,-622.47,0.00011497,2]
[355519965,1741234237801,-500.0,0.00011497,2]
[355519966,1741234237811,-549.73,0.00011497,2]
[355519967,1741234237820,-500.0,0.00011497,2]
[355519968,1741234237829,-767.43,0.00011497,2]
[355519969,1741234237839,-500.0,0.00011497,2]
[355519970,1741234237849,-500.0,0.00011497,2]
[355519971,1741234237860,-500.0,0.00011497,2]
[355519972,1741234237870,-500.0,0.00011497,2]
[355519973,1741234237881,-510.94876731,0.00011497,2]
[355519974,1741234237891,-500.0,0.00011497,2]
[355519975,1741234237901,-500.0,0.00011497,2]
[355519976,1741234237910,-500.0,0.00011497,2]
[355519977,1741234237920,-500.0,0.00011497,2]
[355519978,1741234237930,-500.0,0.00011497,2]
[355519979,1741234237939,-500.0,0.00011497,2]
[355519980,1741234237949,-500.0,0.00011497,2]
[355519981,1741234237959,-500.0,0.00011497,2]
[355519982,1741234237968,-500.0,0.00011497,2]
[355519983,1741234237977,-500.0,0.00011497,2]
[355519984,1741234237987,-500.0,0.00011497,2]
[355519985,1741234237996,-500.0,0.00011497,2]
[355519986,1741234238004,-500.0,0.00011497,2]
[355519987,1741234238013,-500.0,0.00011497,2]
[355519988,1741234238023,-510.40566845,0.00011497,2]
[355519989,1741234238032,-599.24037898,0.00011497,2]
[355519990,1741234238042,-1167.67,0.00011497,2]
[355519991,1741234238053,-500.0,0.00011497,2]
[355519992,1741234238063,-500.0,0.00011497,2]
[355519993,1741234238072,-510.6,0.00011497,2]
[355519994,1741234238082,-2900.88,0.00011497,2]
[355519995,1741234238091,-500.0,0.00011497,2]
[355519996,1741234238101,-500.0,0.00011497,2]
[355519997,1741234238111,-500.0,0.00011497,2]
[355519998,1741234238120,-909.47,0.00011497,2]
[355519999,1741234238130,-500.0,0.00011497,2]
[355520000,1741234238139,-500.0,0.00011497,2]
[355520001,1741234238148,-500.0,0.00011497,2]
[355520002,1741234238158,-522.93,0.00011497,2]
[355520003,1741234238167,-502.93948741,0.00011497,2]
[355520004,1741234238176,-500.0,0.00011497,2]
[355520005,1741234238186,-504.96538098,0.00011497,2]
[355520006,1741234238195,-1746.22,0.00011497,2]
[355520007,1741234238204,-500.0,0.00011497,2]
[355520008,1741234238214,-500.0,0.00011497,2]
[355520009,1741234238223,-500.0,0.00011497,2]
[355520010,1741234238233,-500.0,0.00011497,2]
[355520011,1741234238243,-549.49,0.00011497,2]
[355520012,1741234238252,-501.94083038,0.00011497,2]
[355520013,1741234238262,-820.22,0.00011497,2]
[355520014,1741234238271,-500.0,0.00011497,2]
[355520015,1741234238281,-581.7747841,0.00011497,2]
[355520016,1741234238289,-548.1,0.00011497,2]
[355520017,1741234238298,-500.0,0.00011497,2]
[355520018,1741234238308,-500.0,0.00011497,2]
[355520019,1741234238317,-511.06,0.00011497,2]
[355520020,1741234238326,-394.92377564,0.00011497,2]
[355520021,1741234238336,-500.0,0.00011497,2]
[355520022,1741234238345,-500.0,0.00011497,2]
[355520023,1741234238355,-634.67,0.00011497,2]
[355520024,1741234238364,-637.39,0.00011497,2]
[355520025,1741234238373,-500.0,0.00011497,2]
[355520026,1741234238383,-500.0,0.00011497,2]
[355520027,1741234238392,-368.66082969,0.00011497,2]
[355520028,1741234238401,-500.0,0.00011497,2]
[355520029,1741234238413,-500.0,0.00011497,2]
[355520030,1741234238422,-500.0,0.00011497,2]
[355520031,1741234238432,-635.28,0.00011497,2]
[355520032,1741234238442,-500.0,0.00011497,2]
[355520033,1741234238452,-350.65520793,0.00011497,2]
[355520034,1741234238462,-95.14145359,0.00011498,2]
[355520035,1741234238472,-500.0,0.00011498,2]
[355520036,1741234238481,-509.79010919,0.00011498,2]
[355520037,1741234238492,-502.16284719,0.00011498,2]
[355520038,1741234238502,-502.33155393,0.00011498,2]
[355520039,1741234238512,-508.38694028,0.00011498,2]
[355520040,1741234238522,-505.88475317,0.00011498,2]
[355520041,1741234238532,-502.84469719,0.00011498,2]
[355520042,1741234238542,-508.51636729,0.00011498,2]
[355520043,1741234238552,-303.24522614,0.00011498,2]
[355520044,1741234238562,-511.58871836,0.00011498,2]
[355520045,1741234238572,-492.52700993,0.00011498,2]
[355520046,1741234238582,-503.36242158,0.00011498,2]
[355520047,1741234238591,-505.75872498,0.00011498,2]
[355520048,1741234238601,-500.0,0.00011498,2]
[355520049,1741234238610,-503.00373661,0.00011498,2]
[355520050,1741234238620,-502.59793173,0.00011498,2]
[355520051,1741234238630,-503.59206691,0.00011498,2]
[355520052,1741234238640,-501.3215572,0.00011498,2]
[355520053,1741234238650,-500.0,0.00011498,2]
[355520054,1741234238661,-507.86867414,0.00011498,2]
[355520055,1741234238671,-504.01076027,0.00011498,2]
[355520056,1741234238680,-503.67001786,0.00011498,2]
[355520057,1741234238690,-502.40599246,0.00011498,2]
[355520058,1741234238700,-500.0,0.00011498,2]
[355520059,1741234238710,-502.40381048,0.00011498,2]
[355520060,1741234238719,-510.13138566,0.00011498,2]
[355520061,1741234238728,-500.0,0.00011498,2]
[355520062,1741234238739,-503.67299688,0.00011498,2]
[355520063,1741234238748,-500.0,0.00011498,2]
[355520064,1741234238758,-508.39159751,0.00011498,2]
[355520065,1741234238767,-501.36208364,0.00011498,2]
[355520066,1741234238778,-505.17585621,0.00011498,2]
[355520067,1741234238787,-500.98589305,0.00011498,2]
[355520068,1741234238796,-502.27656383,0.00011498,2]
[355520069,1741234238807,-501.58185629,0.00011498,2]
[355520070,1741234238816,-503.45290447,0.00011498,2]
[355520071,1741234238826,-504.27892874,0.00011498,2]
[355520072,1741234238836,-500.22554175,0.00011498,2]
[355520073,1741234238846,-503.08903108,0.00011498,2]
[355520074,1741234238855,-500.0,0.00011498,2]
[355520075,1741234238865,-503.17505313,0.00011498,2]
[355520076,1741234238874,-186.14675772,0.00011498,2]
[355520077,1741234238883,-333.34352882,0.00011498,2]
[355520078,1741234238893,-500.0,0.00011498,2]
[355520079,1741234238902,-500.0,0.00011498,2]
[355520080,1741234238911,-500.0,0.00011498,2]
[355520081,1741234238920,-500.0,0.00011498,2]
[355520082,1741234238929,-463.22986482,0.00011498,2]
[355520083,1741234238938,-500.0,0.00011498,2]
[355520084,1741234238947,-2830.85,0.00011499,2]
[355520085,1741234238956,-500.0,0.00011499,2]
[355520086,1741234238965,-713.42,0.00011499,2]
[355520087,1741234238974,-643.96,0.00011499,2]
[355520088,1741234238983,-976.14,0.00011499,2]
[355520089,1741234238992,-1612.02,0.00011499,2]
[355520090,1741234239002,-851.06,0.00011499,2]
[355520091,1741234239011,-1378.64,0.00011499,2]
[355520092,1741234239020,-5216.08,0.00011499,2]
[355520093,1741234239030,-1336.88,0.00011499,2]
[355520094,1741234239039,-500.0,0.00011499,2]
[355520095,1741234239048,-500.0,0.00011499,2]
[355520096,1741234239057,-500.0,0.00011499,2]
[355520097,1741234239066,-500.0,0.00011499,2]
[355520098,1741234239075,-500.0,0.00011499,2]
[355520099,1741234239084,-500.0,0.00011499,2]
[355520100,1741234239093,-500.0,0.00011499,2]
[355520101,1741234239102,-500.0,0.00011499,2]
[355520102,1741234239111,-500.0,0.00011499,2]
[355520103,1741234239120,-500.0,0.00011499,2]
[355520104,1741234239129,-550.67,0.00011499,2]
[355520105,1741234239138,-1706.4,0.00011499,2]
[355520106,1741234239147,-9934.13,0.00011499,2]
[355520107,1741234239157,-940.69,0.00011499,2]
[355520108,1741234239166,-1665.41,0.00011499,2]
[355520109,1741234239175,-11478.98,0.00011499,2]
[355520110,1741234239184,-500.0,0.00011499,2]
[355520111,1741234239193,-1396.13,0.00011499,2]
[355520112,1741234239202,-500.0,0.00011499,2]
[355520113,1741234239212,-895.2,0.00011499,2]
[355520114,1741234239222,-2283.93,0.00011499,2]
[355520115,1741234239231,-189.56754434,0.00011499,2]
[355520116,1741234239241,-1000.0,0.00011499,2]
[355520117,1741234239251,-2051.92,0.00011499,2]
[355520118,1741234239260,-500.0,0.00011499,2]
[355520119,1741234239270,-969.42,0.00011499,2]
[355520120,1741234239279,-768.51,0.00011499,2]
[355520121,1741234239289,-500.0,0.00011499,2]
[355520122,1741234239298,-1746.0,0.00011499,2]
[355520123,1741234239308,-1665.22234501,0.00011499,3]
[355520124,1741234239317,-1220361.45852991,0.000115,2]
[355520131,1741234240791,-387.838,0.00011393,2]
[355520132,1741234240801,-388.87574426,0.00011396,2]
[355520133,1741234241398,-228.50889841,0.00011396,2]
[355520134,1741234241407,-500.0,0.00011495,2]
[355520135,1741234241420,-654.16,0.00011496,2]
[355520136,1741234241430,-500.0,0.00011496,2]
[355520137,1741234241438,-466.44441918,0.00011496,2]
[355520389,1741234245825,-280.83494184,0.00011495,2]
[355520390,1741234245835,-500.0,0.00011495,2]
[355520391,1741234245845,-33.55558082,0.00011496,2]
[355520392,1741234245855,-500.0,0.00011496,2]
[355520393,1741234245864,-500.0,0.00011496,2]
[355520394,1741234245874,-683.7,0.00011496,2]
[355520395,1741234245884,-690.18,0.00011496,2]
[355520396,1741234245893,-1477.13,0.00011496,2]
[355520397,1741234245903,-3826.07961424,0.000115,2]
[355520398,1741234255290,219.64,8.565e-05,2]
[355520399,1741234672975,1146.87,0.00010203,2]
[355520400,1741234675249,204.97,0.00010203,2]
[355520401,1741234792020,321.7,0.00010239,2]
[355520402,1741234875027,2000.0,0.00010227,2]
[355520403,1741234948483,200.0,0.00010194,2]
[355520404,1741235210514,150.0,0.00010115,7]
[355520415,1741235340931,4030.02,0.00010098,2]
[355520418,1741235369505,1500.0,0.00014,30]
[355520419,1741235406202,23890.0,0.00010158,2]
[355520420,1741235411041,208.65,8.276e-05,2]
[355520430,1741235431942,-177.43,0.00010249,2]
[355520431,1741235431952,-250.0,0.00010277,2]
[355520432,1741235431961,-1000.0,0.0001042,2]
[355520433,1741235431970,-155.19,0.00010447,2]
[355520434,1741235431979,-309.39,0.0001045,2]
[355520435,1741235431989,-405.3,0.0001045,2]
[355520436,1741235431998,-11184.48,0.00010497,2]
[355520437,1741235432007,-159.58,0.00010509,2]
[355520438,1741235432017,-550.0,0.00010527,2]
[355520439,1741235432027,-208.65,0.0001054,2]
[355520440,1741235432036,-155.19,0.00010586,2]
[355520441,1741235432045,-696.02656301,0.00010619,2]
[355520442,1741235432055,-155.19,0.00010726,2]
[355520443,1741235432065,-180.21,0.00010797,2]
[355520444,1741235432074,-155.19,0.00010865,2]
[355520445,1741235432085,-433.55023486,0.00010969,2]
[355520446,1741235432094,-6016.24112716,0.00011,2]
[355520447,1741235432103,-155.19,0.00011004,2]
[355520448,1741235432113,-687.73247821,0.00011043,2]
[355520449,1741235432122,-312.61086807,0.000111,2]
[355520450,1741235432133,-478.29913193,0.000111,2]
[355520451,1741235432143,-500.0,0.00011137,2]
[355520452,1741235432152,-402.20137317,0.00011137,2]
[355520453,1741235432161,-500.0,0.00011137,2]
[355520454,1741235432171,-584.04,0.00011137,2]
[355520455,1741235432181,-500.0,0.00011137,2]
[355520456,1741235432190,-720.1,0.00011137,2]
[355520457,1741235432200,-500.0,0.00011137,2]
[355520458,1741235432209,-945.16,0.00011137,2]
[355520459,1741235432218,-1217.56,0.00011137,2]
[355520460,1741235432227,-500.0,0.00011137,2]
[355520461,1741235432236,-1014.55,0.00011137,2]
[355520462,1741235432245,-500.0,0.00011137,2]
[355520463,1741235432254,-633.19576599,0.00011137,2]
[355520464,1741235432263,-530.18,0.00011137,2]
[355520465,1741235432273,-500.0,0.00011137,2]
[355520466,1741235432283,-1523.2,0.00011137,2]
[355520467,1741235432292,-577.77,0.00011137,2]
[355520468,1741235432301,-1008.68,0.00011137,2]
[355520469,1741235432311,-500.0,0.00011137,2]
[355520470,1741235432320,-500.0,0.00011137,2]
[355520471,1741235432329,-1058.51,0.00011137,2]
[355520472,1741235432339,-819.88,0.00011137,2]
[355520473,1741235432348,-500.0,0.00011137,2]
[355520474,1741235432357,-4399.3,0.00011137,2]
[355520475,1741235432367,-1005.11,0.00011137,2]
[355520476,1741235432375,-673.27,0.00011137,2]
[355520477,1741235432385,-500.0,0.00011137,2]
[355520478,1741235432394,-500.0,0.00011137,2]
[355520479,1741235432403,-504.21605293,0.00011137,2]
[355520480,1741235432412,-606.13,0.00011137,2]
[355520481,1741235432421,-864.97,0.00011137,2]
[355520482,1741235432430,-500.0,0.00011137,2]
[355520484,1741235432439,-500.0,0.00011137,2]
[355520486,1741235432448,-510.57230056,0.00011137,2]
[355520488,1741235432457,-500.0,0.00011137,2]
[355520490,1741235432466,-508.58133145,0.00011137,2]
[355520492,1741235432475,-505.92255919,0.00011137,2]
[355520494,1741235432484,-877.82,0.00011137,2]
[355520496,1741235432493,-500.0,0.00011137,2]
[355520498,1741235432503,-500.0,0.00011137,2]
[355520500,1741235432512,-500.0,0.00011137,2]
[355520502,1741235432522,-500.0,0.00011137,2]
[355520504,1741235432531,-500.0,0.00011137,2]
[355520506,1741235432540,-249031.06863759,0.00011138,2]
[355520508,1741235432549,-155.19,0.00011143,2]
[355520510,1741235432558,-155.19,0.00011283,2]
[355520512,1741235432568,-449.49,0.0001137,2]
[355520514,1741235432577,-323.18135479,0.00011383,2]
[355520516,1741235432587,-372.96369244,0.00011395,2]
[355520518,1741235432596,-7614.7835,0.00011395,2]
[355520520,1741235432605,-372.96369237,0.00011396,2]
[355520522,1741235432615,-500.0,0.00011396,2]
[355520523,1741235432624,-347.6357,0.00011396,2]
[355520526,1741235432634,-183.43493382,0.00011396,2]
[355520527,1741235432643,-372.96369237,0.00011396,2]
[355520530,1741235432653,-372.96369237,0.00011397,2]
[355520532,1741235432662,-372.96369237,0.00011397,2]
[355520534,1741235432674,-372.96369237,0.00011398,2]
[355520536,1741235432684,-372.96369237,0.00011398,2]
[355520538,1741235432694,-372.96369237,0.00011399,2]
[355520540,1741235432703,-372.96369237,0.00011399,2]
[355520541,1741235432712,-31648.1967,0.000114,2]
[355520544,1741235432722,-372.96369237,0.000114,2]
[355520545,1741235432731,-1897.0,0.000114,2]
[355520547,1741235432741,-584.04,0.00011411,2]
[355520550,1741235432750,-500.0,0.00011411,2]
[355520552,1741235432760,-720.1,0.00011411,2]
[355520553,1741235432769,-500.0,0.00011411,2]
[355520555,1741235432779,-945.16,0.00011411,2]
[355520557,1741235432788,-1217.56,0.00011411,2]
[355520560,1741235432798,-1014.55,0.00011411,2]
[355520561,1741235432808,-500.0,0.00011411,2]
[355520563,1741235432820,-530.18,0.00011411,2]
[355520565,1741235432829,-1523.2,0.00011411,2]
[355520567,1741235432840,-577.77,0.00011411,2]
[355520569,1741235432850,-1008.68,0.00011411,2]
[355520572,1741235432859,-1058.51,0.00011411,2]
[355520573,1741235432869,-819.88,0.00011411,2]
[355520575,1741235432879,-500.0,0.00011411,2]
[355520577,1741235432889,-4399.3,0.00011411,2]
[355520579,1741235432898,-1005.11,0.00011411,2]
[355520581,1741235432907,-673.27,0.00011411,2]
[355520583,1741235432917,-500.0,0.00011411,2]
[355520585,1741235432926,-500.0,0.00011411,2]
[355520587,1741235432936,-606.13,0.00011411,2]
[355520589,1741235432945,-864.97,0.00011411,2]
[355520591,1741235432955,-500.0,0.00011411,2]
[355520594,1741235432965,-500.0,0.00011411,2]
[355520596,1741235432975,-877.82,0.00011411,2]
[355520598,1741235432986,-500.0,0.00011411,2]
[355520600,1741235432995,-500.0,0.00011411,2]
[355520602,1741235433004,-500.0,0.00011411,2]
[355520604,1741235433014,-517.21087294,0.00011411,2]
[355520606,1741235433023,-160.89051206,0.00011473,2]
[355520608,1741235433034,-243.58728394,0.00011473,2]
[355520609,1741235433044,-160.2493618,0.00011473,2]
[355520611,1741235433054,-152.82962111,0.00011473,2]
[355520613,1741235433064,-168.75552151,0.0001148,2]
[355520616,1741235433075,-106965.75561866,0.0001148,2]
[355520618,1741235433085,-869.982,0.00011483,2]
[355520620,1741235433096,-310.36845504,0.00011493,2]
[355520622,1741235433106,-500.0,0.00011493,2]
[355520624,1741235433116,-500.0,0.00011493,2]
[355520626,1741235433126,-500.0,0.00011493,2]
[355520628,1741235433136,-500.0,0.00011493,2]
[355520630,1741235433146,-637.38038003,0.00011493,2]
[355520632,1741235433155,-450.0,0.00011493,2]
[355520634,1741235433165,-500.0,0.00011494,2]
[355520636,1741235433174,-508.99578008,0.00011494,2]
[355520638,1741235433184,-503.4819206,0.00011494,2]
[355520639,1741235433193,-279.04106881,0.00011494,2]
[355520641,1741235433203,-500.0,0.00011494,2]
[355520643,1741235433212,-509.89651501,0.00011494,2]
[355520645,1741235433222,-501.71081995,0.00011494,2]
[355520647,1741235433232,-503.93482147,0.00011494,2]
[355520649,1741235433242,-501.71166045,0.00011494,2]
[355520651,1741235433252,-480.22159492,0.00011494,2]
[355520654,1741235433263,-504.49506956,0.00011494,2]
[355520656,1741235433273,-506.62830078,0.00011494,2]
[355520657,1741235433284,-514.95,0.00011494,2]
[355520659,1741235433294,-507.26607592,0.00011494,2]
[355520662,1741235433304,-500.0,0.00011494,2]
[355520664,1741235433315,-503.18889266,0.00011494,2]
[355520666,1741235433325,-500.0,0.00011494,2]
[355520668,1741235433334,-503.38119738,0.00011494,2]
[355520669,1741235433344,-500.0,0.00011494,2]
[355520671,1741235433353,-503.22308599,0.00011494,2]
[355520673,1741235433363,-505.34676745,0.00011494,2]
[355520675,1741235433372,-500.0,0.00011494,2]
[355520677,1741235433382,-515.5947339,0.00011494,2]
[355520679,1741235433392,-505.83301126,0.00011494,2]
[355520681,1741235433401,-359.98356656,0.00011494,2]
[355520682,1741235433411,-506.54949858,0.00011494,2]
[355520683,1741235433420,-505.85245799,0.00011494,2]
[355520684,1741235433430,-500.0,0.00011494,2]
[355520685,1741235433439,-500.0,0.00011494,2]
[355520686,1741235433448,-500.0,0.00011494,2]
[355520687,1741235433458,-384.24340418,0.00011494,2]
[355520688,1741235433467,-597.61367622,0.00011494,2]
[355520690,1741235433477,-504.74179012,0.00011494,2]
[355520692,1741235433486,-505.0777662,0.00011494,2]
[355520694,1741235433495,-500.0,0.00011494,2]
[355520696,1741235433505,-428.1791229,0.00011494,2]
[355520698,1741235433514,-416.04127185,0.00011494,2]
[355520700,1741235433524,-500.0,0.00011494,2]
[355520702,1741235433533,-506.33996905,0.00011494,2]
[355520704,1741235433542,-502.37898432,0.00011494,2]
[355520706,1741235433551,-513.98723323,0.00011494,2]
[355520708,1741235433560,-500.0,0.00011494,2]
[355520709,1741235433569,-500.0,0.00011494,2]
[355520711,1741235433578,-500.0,0.00011494,2]
[355520713,1741235433587,-500.0,0.00011494,2]
[355520715,1741235433596,-642.32,0.00011494,2]
[355520717,1741235433605,-500.0,0.00011494,2]
[355520719,1741235433615,-500.0,0.00011494,2]
[355520721,1741235433625,-500.0,0.00011494,2]
[355520723,1741235433635,-500.0,0.00011494,2]
[355520725,1741235433645,-499.99550253,0.00011494,2]
[355520727,1741235433654,-505.35350471,0.00011494,2]
[355520729,1741235433663,-500.0,0.00011494,2]